[Event "Djerba Festival Blitz 2025"]
[Site "Djerba"]
[Date "2025.02.21"]
[Round "8.1"]
[White "Moussard, Jules"]
[Black "Dardha, Daniel"]
[Result "1/2-1/2"]
[ECO "C65"]
[WhiteElo "2595"]
[BlackElo "2652"]
[PlyCount "114"]
[EventDate "2025.02.15"]
[EventType "swiss"]
[EventCountry "TUN"]
[TimeControl "180+3"]

1. e4 {[%emt 0:00:03]} e5 {[%emt 0:00:05]} 2. Nf3 {[%emt 0:00:06]} Nc6 {[%emt 0:00:02]} 3. Bb5 {[%emt 0:00:02]} Nf6 {[%emt 0:00:02]} 4. d3 {[%emt 0:00:06]} Bc5 {[%emt 0:00:04]} 5. Bxc6 {[%emt 0:00:03]} dxc6 {[%emt 0:00:02]} 6. O-O {[%emt 0:00:03]} Nd7 {[%emt 0:00:03]} 7. Nbd2 {[%emt 0:00:02]} O-O {[%emt 0:00:04]} 8. Nc4 {[%emt 0:00:02]} f6 {[%emt 0:00:04]} 9. Nh4 {[%emt 0:00:07]} a5 {[%emt 0:00:10]} 10. a4 {[%emt 0:00:02]} g6 {[%emt 0:00:06]} 11. Be3 {[%emt 0:00:33]} Be7 {[%emt 0:00:08]} 12. Nf3 {[%emt 0:00:05]} Rf7 {[%emt 0:00:10]} 13. d4 {[%emt 0:00:05]} exd4 {[%emt 0:00:04]} 14. Bxd4 {[%emt 0:00:03]} Nf8 {[%emt 0:00:07]} 15. Qe2 {[%emt 0:00:11]} Qe8 {[%emt 0:00:14]} 16. h3 {[%emt 0:00:23]} Ne6 {[%emt 0:00:05]} 17. Be3 {[%emt 0:00:02]} b6 {[%emt 0:00:05]} 18. Rfd1 {[%emt 0:00:02]} Ba6 {[%emt 0:00:04]} 19. b3 {[%emt 0:00:03]} Bf8 {[%emt 0:00:10]} 20. e5 {[%emt 0:00:35]} f5 {[%emt 0:00:14]} 21. Ng5 {[%emt 0:00:03]} Nxg5 {[%emt 0:00:03]} 22. Bxg5 {[%emt 0:00:02]} Qe6 {[%emt 0:00:03]} 23. f4 {[%emt 0:00:10]} h6 {[%emt 0:00:27]} 24. Bh4 {[%emt 0:00:01]} Re8 {[%emt 0:00:10]} 25. Kh2 {[%emt 0:00:07]} Bg7 {[%emt 0:00:07]} 26. Re1 {[%emt 0:00:11]} Rd7 {[%emt 0:00:18]} 27. Rad1 {[%emt 0:00:02]} Rd5 {[%emt 0:00:02]} 28. Qf3 {[%emt 0:00:07]} g5 {[%emt 0:00:18]} 29. fxg5 {[%emt 0:00:08]} hxg5 {[%emt 0:00:02]} 30. Bxg5 {[%emt 0:00:03]} Bxc4 {[%emt 0:00:06]} 31. bxc4 {[%emt 0:00:02]} Rxe5 {[%emt 0:00:02]} 32. Rxe5 {[%emt 0:00:05]} Qxe5+ {[%emt 0:00:02]} 33. Bf4 {[%emt 0:00:02]} Qxf4+ {[%emt 0:00:16]} 34. Qxf4 {[%emt 0:00:02]} Be5 {[%emt 0:00:01]} 35. Kg3 {[%emt 0:00:04]} Kf7 {[%emt 0:00:12]} 36. Rd7+ {[%emt 0:00:23]} Kf6 {[%emt 0:00:02]} 37. Rxc7 {[%emt 0:00:02]} Bxf4+ {[%emt 0:00:02]} 38. Kxf4 {[%emt 0:00:02]} Re4+ {[%emt 0:00:02]} 39. Kf3 {[%emt 0:00:02]} Rxc4 {[%emt 0:00:02]} 40. Rb7 {[%emt 0:00:04]} Rxa4 {[%emt 0:00:10]} 41. Rxb6 {[%emt 0:00:02]} Rc4 {[%emt 0:00:02]} 42. Ra6 {[%emt 0:00:06]} a4 {[%emt 0:00:10]} 43. h4 {[%emt 0:00:18]} Rxh4 {[%emt 0:00:06]} 44. Rxc6+ {[%emt 0:00:01]} Kg5 {[%emt 0:00:06]} 45. Rc5 {[%emt 0:00:03]} Rf4+ {[%emt 0:00:05]} 46. Ke3 {[%emt 0:00:02]} Rg4 {[%emt 0:00:02]} 47. Rc8 {[%emt 0:00:03]} a3 {[%emt 0:00:05]} 48. Ra8 {[%emt 0:00:10]} f4+ {[%emt 0:00:02]} 49. Ke4 {[%emt 0:00:04]} Rg3 {[%emt 0:00:05]} 50. c4 {[%emt 0:00:01]} Rc3 {[%emt 0:00:06]} 51. Kd4 {[%emt 0:00:02]} Rc2 {[%emt 0:00:04]} 52. c5 {[%emt 0:00:03]} Kh4 {[%emt 0:00:06]} 53. Rxa3 {[%emt 0:00:04]} Rxg2 {[%emt 0:00:03]} 54. c6 {[%emt 0:00:02]} Rc2 {[%emt 0:00:07]} 55. Rc3 {[%emt 0:00:20]} Rxc3 {[%emt 0:00:02]} 56. Kxc3 {[%emt 0:00:02]} f3 {[%emt 0:00:02]} 57. c7 {[%emt 0:00:05]} f2 {[%emt 0:00:02]} 1/2-1/2

[Event "Djerba Festival Blitz 2025"]
[Site "Djerba"]
[Date "2025.02.21"]
[Round "8.2"]
[White "Willems, Niels"]
[Black "Maurizzi, Marc`Andria"]
[Result "1-0"]
[ECO "E94"]
[WhiteElo "2414"]
[BlackElo "2581"]
[PlyCount "81"]
[EventDate "2025.02.15"]
[EventType "swiss"]
[EventCountry "TUN"]
[TimeControl "180+3"]

1. c4 {[%emt 0:00:04]} Nf6 {[%emt 0:00:05]} 2. Nc3 {[%emt 0:00:02]} e5 {[%emt 0:00:01]} 3. Nf3 {[%emt 0:00:02]} Nc6 {[%emt 0:00:02]} 4. e4 {[%emt 0:00:03]} d6 {[%emt 0:00:04]} 5. d4 {[%emt 0:00:03]} exd4 {[%emt 0:00:01]} 6. Nxd4 {[%emt 0:00:02]} g6 {[%emt 0:00:02]} 7. Be2 {[%emt 0:00:09]} Bg7 {[%emt 0:00:01]} 8. Be3 {[%emt 0:00:02]} O-O {[%emt 0:00:02]} 9. O-O {[%emt 0:00:07]} Re8 {[%emt 0:00:03]} 10. Nxc6 {[%emt 0:00:17]} bxc6 {[%emt 0:00:02]} 11. f3 {[%emt 0:00:01]} Rb8 {[%emt 0:00:06]} 12. Qd2 {[%emt 0:00:05]} c5 {[%emt 0:00:02]} 13. Rad1 {[%emt 0:00:06]} Nd7 {[%emt 0:00:06]} 14. b3 {[%emt 0:00:06]} Bb7 {[%emt 0:00:15]} 15. Nd5 {[%emt 0:00:17]} Ne5 {[%emt 0:00:13]} 16. Bg5 {[%emt 0:00:07]} f6 {[%emt 0:00:01]} 17. Bh4 {[%emt 0:00:16]} Nc6 {[%emt 0:00:11]} 18. Bd3 {[%emt 0:00:05]} Nd4 {[%emt 0:00:05]} 19. f4 {[%emt 0:00:08]} Bxd5 {[%emt 0:00:13]} 20. exd5 {[%emt 0:00:17]} Qd7 {[%emt 0:00:05]} 21. f5 {[%emt 0:00:10]} Nxf5 {[%emt 0:00:30]} 22. Bxf5 {[%emt 0:00:04]} gxf5 {[%emt 0:00:03]} 23. Rf3 {[%emt 0:00:08]} Re4 {[%emt 0:00:02]} 24. Qf2 {[%emt 0:00:24]} Rbe8 {[%emt 0:00:02]} 25. Rf1 {[%emt 0:00:01]} Bh6 {[%emt 0:00:42]} 26. Kh1 {[%emt 0:00:02]} Be3 {[%emt 0:00:03]} 27. Qg3+ {[%emt 0:00:15]} Rg4 {[%emt 0:00:03]} 28. Qh3 {[%emt 0:00:02]} Bg5 {[%emt 0:00:13]} 29. Rxf5 {[%emt 0:00:15]} Qxf5 {[%emt 0:00:32]} 30. Rxf5 {[%emt 0:00:02]} Rxh4 {[%emt 0:00:02]} 31. Qc3 {[%emt 0:00:13]} Rd4 {[%emt 0:00:06]} 32. Rf1 {[%emt 0:00:06]} Re2 {[%emt 0:00:02]} 33. b4 {[%emt 0:00:27]} Rxa2 {[%emt 0:00:19]} 34. bxc5 {[%emt 0:00:04]} dxc5 {[%emt 0:00:01]} 35. Qg3 {[%emt 0:00:02]} Rf4 {[%emt 0:00:28]} 36. Rb1 {[%emt 0:00:12]} Rb2 {[%emt 0:00:00]} 37. Rd1 {[%emt 0:00:05]} Rbf2 {[%emt 0:00:00]} 38. h3 {[%emt 0:00:02]} Kf7 {[%emt 0:00:00]} 39. Qd3 {[%emt 0:00:03]} Kg7 {[%emt 0:00:00]} 40. Rb1 {[%emt 0:00:04]} f5 {[%emt 0:00:00]} 41. Qc3+ {[%emt 0:00:06]} 1-0

[Event "Djerba Festival Blitz 2025"]
[Site "Djerba"]
[Date "2025.02.21"]
[Round "8.3"]
[White "Stopa, Jacek"]
[Black "Oro, Faustino"]
[Result "0-1"]
[ECO "E48"]
[WhiteElo "2310"]
[BlackElo "2447"]
[PlyCount "69"]
[EventDate "2025.02.15"]
[EventType "swiss"]
[EventCountry "TUN"]
[TimeControl "180+3"]

1. d4 {[%emt 0:00:04]} Nf6 {[%emt 0:00:03]} 2. c4 {[%emt 0:00:02]} e6 {[%emt 0:00:02]} 3. Nc3 {[%emt 0:00:01]} Bb4 {[%emt 0:00:03]} 4. e3 {[%emt 0:00:02]} O-O {[%emt 0:00:03]} 5. Bd3 {[%emt 0:00:02]} d5 {[%emt 0:00:12]} 6. cxd5 {[%emt 0:00:02]} exd5 {[%emt 0:00:02]} 7. Nge2 {[%emt 0:00:02]} Re8 {[%emt 0:00:06]} 8. O-O {[%emt 0:00:02]} b6 {[%emt 0:00:07]} 9. a3 {[%emt 0:00:10]} Bd6 {[%emt 0:00:04]} 10. b4 {[%emt 0:00:02]} c6 {[%emt 0:00:08]} 11. Qc2 {[%emt 0:00:10]} Bb7 {[%emt 0:00:05]} 12. Rb1 {[%emt 0:00:03]} Nbd7 {[%emt 0:00:03]} 13. f3 {[%emt 0:00:02]} Qc7 {[%emt 0:00:14]} 14. Kh1 {[%emt 0:00:31]} Rad8 {[%emt 0:00:22]} 15. e4 {[%emt 0:00:51]} dxe4 {[%emt 0:00:03]} 16. fxe4 {[%emt 0:00:02]} Bxh2 {[%emt 0:00:01]} 17. e5 {[%emt 0:00:07]} Nxe5 {[%emt 0:00:02]} 18. dxe5 {[%emt 0:00:06]} Bxe5 {[%emt 0:00:02]} 19. Bf4 {[%emt 0:00:06]} c5 {[%emt 0:00:04]} 20. Ne4 {[%emt 0:00:24]} Nd5 {[%emt 0:00:27]} 21. Bd2 {[%emt 0:00:39]} cxb4 {[%emt 0:00:11]} 22. Qxc7 {[%emt 0:00:03]} Nxc7 {[%emt 0:00:03]} 23. Nf2 {[%emt 0:00:20]} bxa3 {[%emt 0:00:06]} 24. Bc3 {[%emt 0:00:05]} Bxc3 {[%emt 0:00:08]} 25. Nxc3 {[%emt 0:00:02]} Re3 {[%emt 0:00:02]} 26. Nb5 {[%emt 0:00:10]} Nxb5 {[%emt 0:00:07]} 27. Bxb5 {[%emt 0:00:02]} Rg3 {[%emt 0:00:08]} 28. Kh2 {[%emt 0:00:07]} Rxg2+ {[%emt 0:00:03]} 29. Kh3 {[%emt 0:00:02]} Rg5 {[%emt 0:00:08]} 30. Be2 {[%emt 0:00:07]} Bc8+ {[%emt 0:00:06]} 31. Kh4 {[%emt 0:00:05]} Rd4+ {[%emt 0:00:03]} 32. Kxg5 {[%emt 0:00:02]} h6+ {[%emt 0:00:02]} 33. Kh5 {[%emt 0:00:02]} Kh7 {[%emt 0:01:22]} 34. Bg4 {[%emt 0:00:08]} Kg8 35. Be2 {[%emt 0:00:03]} 0-1

[Event "Djerba Festival Blitz 2025"]
[Site "Djerba"]
[Date "2025.02.21"]
[Round "8.4"]
[White "Pichon, Ewen"]
[Black "Njili, Kamel"]
[Result "1-0"]
[ECO "A17"]
[WhiteElo "2351"]
[BlackElo "2406"]
[PlyCount "107"]
[EventDate "2025.02.15"]
[EventType "swiss"]
[EventCountry "TUN"]
[TimeControl "180+3"]

1. Nf3 {[%emt 0:00:03]} Nf6 {[%emt 0:00:07]} 2. c4 {[%emt 0:00:02]} e6 {[%emt 0:00:21]} 3. Nc3 {[%emt 0:00:04]} d5 {[%emt 0:00:03]} 4. e3 {[%emt 0:00:02]} a6 {[%emt 0:00:03]} 5. b3 {[%emt 0:00:03]} Be7 {[%emt 0:00:36]} 6. Bb2 {[%emt 0:00:02]} O-O {[%emt 0:00:03]} 7. Qc2 {[%emt 0:00:02]} b5 {[%emt 0:00:20]} 8. cxb5 {[%emt 0:00:06]} axb5 {[%emt 0:00:02]} 9. Bxb5 {[%emt 0:00:06]} c6 {[%emt 0:00:06]} 10. Be2 {[%emt 0:00:05]} Na6 {[%emt 0:00:04]} 11. a3 {[%emt 0:00:03]} Bd6 {[%emt 0:00:23]} 12. d4 {[%emt 0:00:26]} c5 {[%emt 0:00:32]} 13. O-O {[%emt 0:00:05]} cxd4 {[%emt 0:00:09]} 14. exd4 {[%emt 0:00:03]} Bb7 {[%emt 0:00:06]} 15. b4 {[%emt 0:00:12]} Rc8 {[%emt 0:00:04]} 16. Qa4 {[%emt 0:00:13]} Nc7 {[%emt 0:00:07]} 17. Rac1 {[%emt 0:00:11]} Na8 {[%emt 0:00:09]} 18. Qa5 {[%emt 0:00:34]} Bc7 {[%emt 0:00:23]} 19. Qb5 {[%emt 0:00:12]} Rb8 {[%emt 0:00:04]} 20. Na4 {[%emt 0:00:36]} Ne4 {[%emt 0:00:07]} 21. Nc5 {[%emt 0:00:06]} Bc8 {[%emt 0:00:03]} 22. Qd3 {[%emt 0:00:05]} Nb6 {[%emt 0:00:03]} 23. Nxe4 {[%emt 0:00:06]} dxe4 {[%emt 0:00:02]} 24. Qxe4 {[%emt 0:00:02]} Bb7 {[%emt 0:00:02]} 25. Qc2 {[%emt 0:00:13]} Nd5 {[%emt 0:00:03]} 26. g3 {[%emt 0:00:05]} Bb6 {[%emt 0:00:13]} 27. Qd2 {[%emt 0:00:05]} Nf6 {[%emt 0:00:05]} 28. Qf4 {[%emt 0:00:14]} Qd5 {[%emt 0:00:02]} 29. Rfd1 {[%emt 0:00:13]} Qb3 {[%emt 0:00:05]} 30. Ba1 {[%emt 0:00:08]} Nd5 {[%emt 0:00:02]} 31. Qd2 {[%emt 0:00:03]} Qxa3 {[%emt 0:00:03]} 32. b5 {[%emt 0:00:03]} Qd6 {[%emt 0:00:07]} 33. Ne5 {[%emt 0:00:02]} Qe7 {[%emt 0:00:00]} 34. Nc6 {[%emt 0:00:02]} Qf6 {[%emt 0:00:00]} 35. Nxb8 {[%emt 0:00:03]} Rxb8 {[%emt 0:00:01]} 36. Bf1 {[%emt 0:00:05]} h5 {[%emt 0:00:06]} 37. h4 {[%emt 0:00:02]} Ne7 {[%emt 0:00:03]} 38. Bg2 {[%emt 0:00:02]} Bxg2 {[%emt 0:00:02]} 39. Kxg2 {[%emt 0:00:02]} Nd5 {[%emt 0:00:04]} 40. Qg5 {[%emt 0:00:03]} Qxg5 {[%emt 0:00:02]} 41. hxg5 {[%emt 0:00:01]} Ra8 {[%emt 0:00:02]} 42. Bb2 {[%emt 0:00:05]} Ra5 {[%emt 0:00:02]} 43. Rc8+ {[%emt 0:00:03]} Kh7 {[%emt 0:00:01]} 44. Bc1 {[%emt 0:00:02]} Rxb5 {[%emt 0:00:02]} 45. Be3 {[%emt 0:00:02]} Rb2 {[%emt 0:00:03]} 46. Kf3 {[%emt 0:00:01]} Kg6 {[%emt 0:00:02]} 47. Rdc1 {[%emt 0:00:03]} Rb3 {[%emt 0:00:03]} 48. Rb8 {[%emt 0:00:08]} Ra3 {[%emt 0:00:03]} 49. Rc4 {[%emt 0:00:03]} Ra2 {[%emt 0:00:03]} 50. Rb7 {[%emt 0:00:06]} Bd8 {[%emt 0:00:02]} 51. Rc8 {[%emt 0:00:04]} Bf6 {[%emt 0:00:02]} 52. gxf6 {[%emt 0:00:01]} Nxf6 {[%emt 0:00:03]} 53. Rcc7 {[%emt 0:00:03]} h4 {[%emt 0:00:02]} 54. gxh4 {[%emt 0:00:01]} 1-0

[Event "Djerba Festival Blitz 2025"]
[Site "Djerba"]
[Date "2025.02.21"]
[Round "8.5"]
[White "Kakavand, Ramtin"]
[Black "Maghsoodloo, Parham"]
[Result "0-1"]
[ECO "B06"]
[WhiteElo "2106"]
[BlackElo "2680"]
[PlyCount "92"]
[EventDate "2025.02.15"]
[EventType "swiss"]
[EventCountry "TUN"]
[TimeControl "180+3"]

1. e4 {[%emt 0:00:04]} g6 {[%emt 0:00:03]} 2. d4 {[%emt 0:00:03]} Bg7 {[%emt 0:00:02]} 3. c3 {[%emt 0:00:02]} d6 {[%emt 0:00:05]} 4. Bd3 {[%emt 0:00:02]} Nc6 {[%emt 0:00:06]} 5. h3 {[%emt 0:00:05]} e5 {[%emt 0:00:03]} 6. Nf3 {[%emt 0:00:12]} Bd7 {[%emt 0:00:14]} 7. Be3 {[%emt 0:00:09]} exd4 {[%emt 0:00:20]} 8. cxd4 {[%emt 0:00:05]} Nge7 {[%emt 0:00:03]} 9. Nc3 {[%emt 0:00:16]} O-O {[%emt 0:00:03]} 10. O-O {[%emt 0:00:04]} a6 {[%emt 0:00:02]} 11. a4 {[%emt 0:00:18]} Nb4 {[%emt 0:00:04]} 12. Bb1 {[%emt 0:00:20]} a5 {[%emt 0:00:09]} 13. Na2 {[%emt 0:00:25]} Na6 {[%emt 0:00:11]} 14. Bd3 {[%emt 0:00:09]} h6 {[%emt 0:00:07]} 15. Qd2 {[%emt 0:00:13]} Kh7 {[%emt 0:00:05]} 16. b3 {[%emt 0:00:23]} f5 {[%emt 0:00:22]} 17. exf5 {[%emt 0:00:30]} Nxf5 {[%emt 0:00:02]} 18. Rad1 {[%emt 0:00:12]} Bc6 {[%emt 0:00:12]} 19. Be2 {[%emt 0:00:13]} Bd5 {[%emt 0:00:03]} 20. Rb1 {[%emt 0:00:08]} c6 {[%emt 0:00:04]} 21. Nc3 {[%emt 0:00:03]} Bg8 {[%emt 0:00:07]} 22. Bc4 {[%emt 0:00:05]} Nb4 {[%emt 0:00:17]} 23. Bxg8+ {[%emt 0:00:06]} Kxg8 {[%emt 0:00:02]} 24. Rfe1 {[%emt 0:00:05]} Qd7 {[%emt 0:00:07]} 25. Rbd1 {[%emt 0:00:02]} Qf7 {[%emt 0:00:04]} 26. Rb1 {[%emt 0:00:04]} g5 {[%emt 0:00:04]} 27. Nh2 {[%emt 0:00:02]} Rae8 {[%emt 0:00:03]} 28. Red1 {[%emt 0:00:04]} Re7 {[%emt 0:00:08]} 29. Re1 {[%emt 0:00:02]} Rfe8 {[%emt 0:00:03]} 30. Nf1 {[%emt 0:00:02]} Bxd4 {[%emt 0:00:33]} 31. Bxd4 {[%emt 0:00:03]} Rxe1 {[%emt 0:00:03]} 32. Rxe1 {[%emt 0:00:03]} Rxe1 {[%emt 0:00:02]} 33. Qxe1 {[%emt 0:00:05]} Nxd4 {[%emt 0:00:02]} 34. Ne4 {[%emt 0:00:02]} Qe6 {[%emt 0:00:05]} 35. Nfg3 {[%emt 0:00:04]} d5 {[%emt 0:00:08]} 36. Qc3 {[%emt 0:00:02]} Qxe4 {[%emt 0:00:06]} 37. Nxe4 {[%emt 0:00:04]} Ne2+ {[%emt 0:00:02]} 38. Kf1 {[%emt 0:00:01]} Nxc3 {[%emt 0:00:02]} 39. Nxc3 {[%emt 0:00:02]} Nd3 {[%emt 0:00:03]} 40. Nb1 {[%emt 0:00:05]} Kf7 {[%emt 0:00:06]} 41. Nd2 {[%emt 0:00:03]} Ke6 {[%emt 0:00:02]} 42. Ke2 {[%emt 0:00:01]} Nc5 {[%emt 0:00:06]} 43. Kd1 {[%emt 0:00:05]} Ne4 {[%emt 0:00:06]} 44. Nf3 {[%emt 0:00:04]} Nxf2+ {[%emt 0:00:03]} 45. Ke2 {[%emt 0:00:02]} Ne4 {[%emt 0:00:03]} 46. Ke3 {[%emt 0:00:01]} c5 {[%emt 0:00:00] Kd4 Ke5+} 0-1

[Event "Djerba Festival Blitz 2025"]
[Site "Djerba"]
[Date "2025.02.21"]
[Round "8.6"]
[White "Kaabi, Iheb"]
[Black "Edouard, Romain"]
[Result "0-1"]
[ECO "B23"]
[WhiteElo "1810"]
[BlackElo "2544"]
[PlyCount "58"]
[EventDate "2025.02.15"]
[EventType "swiss"]
[EventCountry "TUN"]
[TimeControl "180+3"]

1. e4 {[%emt 0:00:03]} c5 {[%emt 0:00:03]} 2. Nc3 {[%emt 0:00:03]} g6 {[%emt 0:00:02]} 3. d4 {[%emt 0:00:03]} cxd4 {[%emt 0:00:03]} 4. Qxd4 {[%emt 0:00:03]} Nf6 {[%emt 0:00:02]} 5. Bb5 {[%emt 0:00:03]} Nc6 {[%emt 0:00:14]} 6. Bxc6 {[%emt 0:00:02]} dxc6 {[%emt 0:00:09]} 7. Qxd8+ {[%emt 0:00:05]} Kxd8 {[%emt 0:00:02]} 8. Bf4 {[%emt 0:00:10]} Bg7 {[%emt 0:00:03]} 9. O-O-O+ {[%emt 0:00:04]} Ke8 {[%emt 0:00:05]} 10. f3 {[%emt 0:00:11]} Nd7 {[%emt 0:00:19]} 11. Nge2 {[%emt 0:00:06]} e5 {[%emt 0:00:04]} 12. Be3 {[%emt 0:00:08]} Ke7 {[%emt 0:00:02]} 13. h4 {[%emt 0:00:04]} h5 {[%emt 0:00:07]} 14. Na4 {[%emt 0:00:14]} b6 {[%emt 0:00:02]} 15. Rd2 {[%emt 0:00:30]} Nf8 {[%emt 0:00:24]} 16. Nac3 {[%emt 0:00:31]} Ne6 {[%emt 0:00:05]} 17. f4 {[%emt 0:00:19]} exf4 {[%emt 0:00:17]} 18. Nxf4 {[%emt 0:00:02]} Re8 {[%emt 0:00:30]} 19. a4 {[%emt 0:00:09]} Kf8 {[%emt 0:01:27]} 20. Rf1 {[%emt 0:00:09]} Nxf4 {[%emt 0:00:00]} 21. Bxf4 {[%emt 0:00:03]} Bg4 {[%emt 0:00:00]} 22. Bd6+ {[%emt 0:00:11]} Kg8 {[%emt 0:00:00]} 23. Rdf2 {[%emt 0:00:03]} Be6 {[%emt 0:00:00]} 24. Ne2 {[%emt 0:00:26]} Rad8 {[%emt 0:00:00]} 25. e5 {[%emt 0:00:28]} Bc4 {[%emt 0:00:00]} 26. b3 {[%emt 0:00:02]} Bxe2 {[%emt 0:00:00]} 27. Rxe2 {[%emt 0:00:02]} Rxd6 {[%emt 0:00:00]} 28. exd6 {[%emt 0:00:07]} Rxe2 {[%emt 0:00:00]} 29. d7 {[%emt 0:00:02]} Bh6+ {[%emt 0:00:30] Rh1} 0-1

[Event "Djerba Festival Blitz 2025"]
[Site "Djerba"]
[Date "2025.02.21"]
[Round "8.7"]
[White "Kobalia, Mikhail"]
[Black "Bouzidi, Ahmed"]
[Result "1-0"]
[ECO "C65"]
[WhiteElo "2538"]
[BlackElo "2168"]
[PlyCount "56"]
[EventDate "2025.02.15"]
[EventType "swiss"]
[EventCountry "TUN"]
[TimeControl "180+3"]

1. e4 {[%emt 0:00:02]} e5 {[%emt 0:00:03]} 2. Nf3 {[%emt 0:00:03]} Nc6 {[%emt 0:00:02]} 3. Bb5 {[%emt 0:00:02]} Nf6 {[%emt 0:00:03]} 4. d3 {[%emt 0:00:02]} Ne7 {[%emt 0:00:06]} 5. d4 {[%emt 0:00:05]} Nxe4 {[%emt 0:01:30]} 6. dxe5 {[%emt 0:00:02]} Ng6 {[%emt 0:00:06]} 7. Qd5 {[%emt 0:00:12]} Nc5 {[%emt 0:00:11]} 8. Bc4 {[%emt 0:00:02]} Ne6 {[%emt 0:00:03]} 9. Nc3 {[%emt 0:00:11]} Be7 {[%emt 0:00:57]} 10. h4 {[%emt 0:00:03]} Nxh4 {[%emt 0:00:28]} 11. Nxh4 {[%emt 0:00:04]} Bxh4 {[%emt 0:00:02]} 12. Be3 {[%emt 0:00:06]} c6 {[%emt 0:00:04]} 13. Qd2 {[%emt 0:00:06]} b5 {[%emt 0:00:02]} 14. Bb3 {[%emt 0:00:03]} Be7 {[%emt 0:00:04]} 15. Ne4 {[%emt 0:00:03]} Qc7 {[%emt 0:00:04]} 16. Nd6+ {[%emt 0:00:03]} Bxd6 {[%emt 0:00:03]} 17. exd6 {[%emt 0:00:02]} Qd8 {[%emt 0:00:03]} 18. O-O-O {[%emt 0:00:04]} Qf6 {[%emt 0:00:01]} 19. Bxe6 {[%emt 0:00:11]} fxe6 {[%emt 0:00:03]} 20. Bd4 {[%emt 0:00:02]} Qg6 {[%emt 0:00:03]} 21. Rh3 {[%emt 0:00:04]} Rg8 {[%emt 0:00:04]} 22. Rg3 {[%emt 0:00:05]} Qf5 {[%emt 0:00:03]} 23. Bxg7 {[%emt 0:00:15]} c5 {[%emt 0:00:03]} 24. Bh6 {[%emt 0:00:39]} Rxg3 25. fxg3 {[%emt 0:00:02]} Bb7 {[%emt 0:00:05]} 26. Bg5 {[%emt 0:00:02]} a5 {[%emt 0:00:04]} 27. Be7 {[%emt 0:00:03]} a4 {[%emt 0:00:04]} 28. Qe2 {[%emt 0:00:02]} a3 {[%emt 0:00:00]} 1-0

[Event "Djerba Festival Blitz 2025"]
[Site "Djerba"]
[Date "2025.02.21"]
[Round "8.9"]
[White "Viers, Emmanuel"]
[Black "Chelly, Yahya"]
[Result "1-0"]
[ECO "C13"]
[WhiteElo "2072"]
[BlackElo "2106"]
[PlyCount "135"]
[EventDate "2025.02.15"]
[EventType "swiss"]
[EventCountry "TUN"]
[TimeControl "180+3"]

1. d4 {[%emt 0:00:04]} d5 {[%emt 0:00:02]} 2. Nc3 {[%emt 0:00:02]} Nf6 {[%emt 0:00:03]} 3. Nf3 {[%emt 0:00:01]} e6 {[%emt 0:00:04]} 4. Bg5 {[%emt 0:00:04]} Be7 {[%emt 0:00:03]} 5. Bxf6 {[%emt 0:00:02]} Bxf6 {[%emt 0:00:02]} 6. e4 {[%emt 0:00:02]} dxe4 7. Nxe4 {[%emt 0:00:02]} Nd7 {[%emt 0:00:09]} 8. Bd3 {[%emt 0:00:04]} O-O {[%emt 0:00:07]} 9. O-O {[%emt 0:00:15]} c6 {[%emt 0:00:35]} 10. Qe2 {[%emt 0:00:12]} Qe7 {[%emt 0:00:04]} 11. c3 {[%emt 0:00:07]} Rd8 {[%emt 0:00:06]} 12. Rae1 {[%emt 0:00:12]} Nf8 {[%emt 0:00:04]} 13. Nxf6+ {[%emt 0:00:06]} Qxf6 {[%emt 0:00:02]} 14. Ne5 {[%emt 0:00:07]} Ng6 {[%emt 0:00:04]} 15. Qe4 {[%emt 0:00:13]} Bd7 {[%emt 0:00:48]} 16. Re3 {[%emt 0:00:28]} Be8 {[%emt 0:00:26]} 17. Rf3 {[%emt 0:00:20]} Qg5 {[%emt 0:00:16]} 18. Rg3 {[%emt 0:00:43]} Qd2 {[%emt 0:00:16]} 19. h4 {[%emt 0:00:21]} f5 {[%emt 0:00:25]} 20. Qe3 {[%emt 0:00:30]} Qxe3 {[%emt 0:00:05]} 21. Rxe3 {[%emt 0:00:01]} Nxh4 {[%emt 0:00:25]} 22. Bc4 {[%emt 0:00:13]} f4 {[%emt 0:00:00]} 23. Bxe6+ {[%emt 0:00:00]} Kh8 {[%emt 0:00:00]} 24. Re4 {[%emt 0:00:00]} Ng6 {[%emt 0:00:03]} 25. Nxg6+ {[%emt 0:00:00]} Bxg6 {[%emt 0:00:02]} 26. Rxf4 {[%emt 0:00:00]} Re8 {[%emt 0:00:02]} 27. Bg4 {[%emt 0:00:04]} h6 {[%emt 0:00:05]} 28. Bf3 {[%emt 0:00:05]} Re7 {[%emt 0:00:03]} 29. g3 {[%emt 0:00:03]} Rae8 {[%emt 0:00:02]} 30. Kg2 {[%emt 0:00:02]} Kh7 {[%emt 0:00:02]} 31. Rd1 {[%emt 0:00:03]} Rd8 {[%emt 0:00:04]} 32. d5 {[%emt 0:00:06]} cxd5 33. Rxd5 {[%emt 0:00:01]} Rxd5 {[%emt 0:00:08]} 34. Bxd5 {[%emt 0:00:02]} Rd7 {[%emt 0:00:02]} 35. Bf3 {[%emt 0:00:02]} Rd2 {[%emt 0:00:02]} 36. Rb4 {[%emt 0:00:04]} b6 {[%emt 0:00:01]} 37. a4 {[%emt 0:00:02]} Rd6 {[%emt 0:00:07]} 38. Rc4 {[%emt 0:00:05]} a5 {[%emt 0:00:02]} 39. Rc7 {[%emt 0:00:04]} Rd2 {[%emt 0:00:04]} 40. b4 {[%emt 0:00:03]} Ra2 {[%emt 0:00:03]} 41. bxa5 {[%emt 0:00:06]} bxa5 {[%emt 0:00:02]} 42. Bc6 {[%emt 0:00:01]} Ra3 {[%emt 0:00:03]} 43. Bb5 {[%emt 0:00:04]} Bc2 {[%emt 0:00:02]} 44. Ra7 {[%emt 0:00:04]} Rxc3 {[%emt 0:00:04]} 45. Rxa5 {[%emt 0:00:03]} Ra3 {[%emt 0:00:03]} 46. Kh3 {[%emt 0:00:03]} Bf5+ {[%emt 0:00:02]} 47. Kg2 {[%emt 0:00:02]} Bc2 {[%emt 0:00:03]} 48. Ra7 {[%emt 0:00:03]} Be4+ {[%emt 0:00:02]} 49. Kf1 {[%emt 0:00:02]} Bc2 {[%emt 0:00:05]} 50. Ke2 {[%emt 0:00:03]} Kg6 {[%emt 0:00:03]} 51. a5 {[%emt 0:00:03]} Kf6 {[%emt 0:00:04]} 52. a6 {[%emt 0:00:02]} Ra2 {[%emt 0:00:04]} 53. Ke3 {[%emt 0:00:03]} Ba4 {[%emt 0:00:03]} 54. Bd3 {[%emt 0:00:05]} Ra3 {[%emt 0:00:02]} 55. Kd4 {[%emt 0:00:03]} Bb3 {[%emt 0:00:05]} 56. Rb7 {[%emt 0:00:02]} Bf7 {[%emt 0:00:03]} 57. Rb6+ {[%emt 0:00:03]} Ke7 {[%emt 0:00:02]} 58. Rb7+ {[%emt 0:00:03]} Kf8 {[%emt 0:00:02]} 59. a7 {[%emt 0:00:02]} Be8 {[%emt 0:00:03]} 60. Kc5 {[%emt 0:00:05]} Ra5+ {[%emt 0:00:03]} 61. Kb6 {[%emt 0:00:03]} Ra3 {[%emt 0:00:02]} 62. Rb8 {[%emt 0:00:02]} Rb3+ {[%emt 0:00:04]} 63. Kc7 {[%emt 0:00:02]} Rc3+ {[%emt 0:00:02]} 64. Kb6 {[%emt 0:00:04]} Rb3+ {[%emt 0:00:02]} 65. Kc7 {[%emt 0:00:04]} Rc3+ {[%emt 0:00:02]} 66. Kb6 {[%emt 0:00:06]} Rb3+ {[%emt 0:00:02]} 67. Kc5 {[%emt 0:00:02]} Rxd3 {[%emt 0:00:06]} 68. a8=Q {[%emt 0:00:02]} 1-0